Cogmind - Beta 14 @@@ ROGUE MODE // 2025.04.24 @ 18:02:43 Player: LightKnight Result: Destroyed self with Latent Energy Streamer Performance ------------- Evolutions (0) 0 Regions Visited (4) 800 Robots Destroyed (45) 225 Value Destroyed (1642) 1642 Prototype IDs (28) 560 Alien Tech Used (0) 0 Bonus (325) 325 TOTAL SCORE: 3552 Bonus ------- Follower Combat Kills 25 Aligned with FarCom 300 Cogmind --------- Core Integrity 0/250 Matter 294/300 Energy 140/300 System Corruption 1% Temperature Cool (0) Movement Walking (120) Location -9/Mines Parts ------- > --- POWER (1) -------- (None) > --- PROPULSION (2) --- Aluminum Leg Aluminum Leg > --- UTILITY (2) ------ Small Storage Unit Large Battery > --- WEAPON (2) ------- Latent Energy Streamer > --- INVENTORY (8) ---- Light Treads Aluminum Leg Improved Heat Sink Experimental Sensor Array Light Armor Plating Trap Reconfigurator YOLO Cannon Peak State ------------ > --- POWER ------------ Light Nuclear Core > --- PROPULSION ------- Light Treads Light Treads > --- UTILITY ---------- Improved Heat Sink Small Storage Unit > --- WEAPON ----------- YOLO Cannon > --- INVENTORY -------- Light Ion Engine Aluminum Leg Aluminum Leg Aluminum Leg Experimental Sensor Array Trap Reconfigurator Latent Energy Streamer [Rating: 32] Favorites ----------- Power Light Ion Engine Engine Light Ion Engine Power Core Light Nuclear Core Propulsion Aluminum Leg Treads Light Treads Leg Aluminum Leg Utility Small Storage Unit Device Improved Heat Sink Storage Small Storage Unit Protection Light Armor Plating Weapon Medium Laser Energy Gun Medium Laser Energy Cannon Latent Energy Streamer Ballistic Gun Light Assault Rifle Launcher Grenade Launcher Build | -11 -10 -10 -10 -9 ------- Run | Yrd Mat Min Exi Min Slots Evolved . | . . . . . Power . | . . . . . Propulsion . | . . . . . Utility . | . . . . . Weapon . | . . . . . Parts Attached 25 | . 9 6 7 3 Power 5 | . 2 1 2 . Engine 4 | . 2 1 1 . Core 1 | . . . 1 . Reactor . | . . . . . Propulsion 8 | . 2 2 4 . Treads 2 | . . . 2 . Leg 6 | . 2 2 2 . Wheel . | . . . . . Hover . | . . . . . Flight . | . . . . . Utility 5 | . 2 1 . 2 Device 3 | . 2 1 . . Storage 1 | . . . . 1 Processor . | . . . . . Hackware . | . . . . . Protection 1 | . . . . 1 Artifact . | . . . . . Weapon 7 | . 3 2 1 1 Energy Gun 4 | . 2 2 . . Energy Cannon 2 | . . . 1 1 Ballistic Gun . | . . . . . Ballistic Cannon . | . . . . . Launcher 1 | . 1 . . . Special Weapon . | . . . . . Impact Weapon . | . . . . . Slashing Weapon . | . . . . . Piercing Weapon . | . . . . . Special Melee Weapon . | . . . . . Unidentified Prototypes . | . . . . . Parts Lost 8 | . 4 1 3 . Power 4 | . 2 . 2 . Propulsion 1 | . . . 1 . Utility . | . . . . . Weapon 3 | . 2 1 . . Highest Loss Streak 3 | . 3 1 3 . To Critical Strikes . | . . . . . Average Slot Usage (%) 91 | . 94 100 88 70 Engine 10 | . 12 14 9 . Treads 1 | . . . 5 . Leg 26 | . 28 28 20 28 Device 11 | . 11 14 14 . Storage 15 | . 14 14 14 23 Energy Gun 16 | . 13 24 17 . Energy Cannon 3 | . . . 5 13 Ballistic Gun 2 | . 11 . . . Launcher 1 | . 2 3 . . Peak Build Rating 32 | . 7 10 32 18 Average Rating 11 | . 6 9 17 17 On Entrance 8 | 6 6 7 10 11 Naked Turns . | . . . . . Heaviest Build 29 | 10 14 14 29 18 Greatest Support 40 | 20 20 20 40 20 Greatest Overweight (x) 1 | . . . 1 . Average Overweight (x) . | . . . . . Largest Inventory Capacity 8 | . 8 8 8 8 Average Capacity 8 | . 8 8 8 8 Most Carried 8 | . 8 8 8 8 Average Carried 7 | . 7 7 7 7 Final Capacity 8 | 8 8 8 8 8 Final Carried 8 | 6 7 8 7 8 Class Distribution -------------------- 57% | Scavenger-Mutant 42% | Mutant Dominant Class ---------------- Mutant | -10/Materials Scavenger-Mutant | -10/Mines Scavenger-Mutant | -10/Exiles Mutant | -9/Mines Resources | -11 -10 -10 -10 -9 ----------- Run | Yrd Mat Min Exi Min Matter Collected 553 | 200 104 174 . 75 Remotely . | . . . . . Salvage Created 1202 | . 331 224 647 . Parts 65 | . 21 11 33 . Haulers Intercepted . | . . . . . Recyclers Shooed 1 | . 1 . . . Parts Field Recycled . | . . . . . Retrieved Matter . | . . . . . Parts Self-Destructed . | . . . . . Prevented . | . . . . . Kills | -11 -10 -10 -10 -9 ------- Run | Yrd Mat Min Exi Min Combat Hostiles Destroyed 43 | . 13 8 22 . Guns 14 | . 11 3 . . Cannons 5 | . . . 5 . AOE 23 | . 2 5 16 . Classes Destroyed 8 | . 3 1 4 . Worker 1 | . 1 . . . Mechanic 1 | . . 1 . . Swarmer 6 | . 6 . . . Grunt 25 | . 7 8 10 . Brawler 1 | . . . 1 . Demolisher 1 | . . . 1 . Hunter 6 | . . . 6 . Programmer 4 | . . . 4 . Best Kill Streak 20 | . 5 5 20 . Combat Bots Only 20 | . 4 4 20 . Max Kills in Single Turn 6 | . 2 2 6 . Gunslinging . | . . . . . Exploded 5 | . 1 1 5 . Melee . | . . . . . Uniques/NPCs Destroyed . | . . . . . Combat | -11 -10 -10 -10 -9 -------- Run | Yrd Mat Min Exi Min Hostile Shots Fired 173 | . 64 21 87 1 Missed 66 | . 23 5 37 1 Damage Taken 1552 | . 492 276 769 15 Core 251 | . 63 60 118 10 Absorbed by Shields . | . . . . . Core Remaining (%) 100 | 100 . . . . Volleys Fired 69 | . 43 14 11 1 Largest 2 | . 2 2 1 1 Hottest 100 | . 70 100 100 60 Shots Fired 118 | . 82 24 11 1 Gun 96 | . 81 15 . . Cannon 12 | . . . 11 1 Launcher 10 | . 1 9 . . Special . | . . . . . Kinetic 41 | . 41 . . . Thermal 66 | . 40 15 11 . Explosive 10 | . 1 9 . . Electromagnetic 1 | . . . . 1 Robot Hit Streak 13 | . 13 7 4 . Robot Miss Streak 6 | . 6 2 1 1 Penetration Max . | . . . . . Secondary Targets 1 | . 1 . . . Max Gunslinging Chain 1 | . 1 . . . Shots Hit Robots 68 | . 46 13 9 . Core Hits 57 | . 23 16 17 1 Critical Kills 1 | . . . 1 . Critical Parts Destroyed . | . . . . . Critical Strikes 2 | . . 1 1 . Burn 1 | . . 1 . . Meltdown 1 | . . . 1 . Melee Attacks . | . . . . . Impact . | . . . . . Slashing . | . . . . . Piercing . | . . . . . Sneak Attacks . | . . . . . Combat Hostiles . | . . . . . Follow-up Attacks . | . . . . . Damage Inflicted 4658 | . 673 764 3194 27 Guns 568 | . 443 125 . . Cannons 1008 | . . . 1008 . Explosions 3068 | . 230 629 2186 23 Melee . | . . . . . Ramming 14 | . . 10 . 4 Kinetic 213 | . 213 . . . Thermal 3549 | . 230 125 3194 . Explosive 859 | . 230 629 . . Electromagnetic 23 | . . . . 23 Impact . | . . . . . Slashing . | . . . . . Piercing . | . . . . . Highest Corruption . | . . . . . Average Corruption . | . . . . . Corruption Purged . | . . . . . Corruption Blocked . | . . . . . Overload Shots . | . . . . . Overflow Damage 499 | . 41 . 458 . Projectiles 338 | . . . 338 . Explosions 161 | . 41 . 120 . Melee . | . . . . . Knockbacks . | . . . . . Impact . | . . . . . Kinetic . | . . . . . Secondary . | . . . . . Self-Inflicted Damage 162 | . 70 75 . 17 Shots 7 | . 1 5 . 1 Rammed . | . . . . . Targets Rammed 4 | . 1 2 . 1 Kicked 4 | . 1 2 . 1 Crushed . | . . . . . Highest Temperature 76 | . 76 7 56 . Average Temperature 22 | . 25 3 23 . Received Heat Transfer 276 | . 156 114 6 . Siege Activations . | . . . . . Robots Corrupted . | . . . . . Combat Hostiles . | . . . . . Parts Fried . | . . . . . Impact Corruptions . | . . . . . Robots Melted 1 | . . . 1 . Combat Hostiles 1 | . . . 1 . Parts Melted 5 | . . . 5 . Heat Transferred 3849 | . 525 444 2880 . Parts Sabotaged . | . . . . . Parts Stolen . | . . . . . Parts Stripped . | . . . . . Power Chain Reactions . | . . . . . Latent Energy Used 54 | . . . . 54 LE Corruption 1 | . . . . 1 Alert | -11 -10 -10 -10 -9 ------- Run | Yrd Mat Min Exi Min Peak Influence 308 | . 222 308 . . Initial 48 | . . 48 . . Average 103 | . 85 154 . . Maximum Alert Level 1 | . 1 1 . . Low Security (%) 85 | . 90 76 . 100 Level 1 14 | . 9 23 . . Level 2 . | . . . . . Level 3 . | . . . . . Level 4 . | . . . . . Level 5 . | . . . . . High Security . | . . . . . Max Security . | . . . . . Squads Dispatched 4 | . 3 1 . . Investigation 1 | . 1 . . . Extermination . | . . . . . Reinforcement 2 | . 2 . . . Assault 1 | . . 1 . . Garrison . | . . . . . Intercept . | . . . . . Searches Triggered . | . . . . . Construction Impeded . | . . . . . Haulers Reinforced . | . . . . . Active Scanning Responses . | . . . . . Cargo Convoy Interrupts . | . . . . . Stealth | -11 -10 -10 -10 -9 --------- Run | Yrd Mat Min Exi Min Distress Signals 1 | . 1 . . . Communications Jammed . | . . . . . Distress Signals . | . . . . . Times Spotted 54 | . 17 7 22 8 Peak Tracking Total 15 | . 4 4 10 15 Tactical Retreats 1 | . . . . 1 Traps | -11 -10 -10 -10 -9 ------- Run | Yrd Mat Min Exi Min Traps Triggered 1 | . 1 . . . Indirectly . | . . . . . Trap Hack Attempts . | . . . . . Triggered . | . . . . . Disarmed . | . . . . . Reprogrammed . | . . . . . Reused . | . . . . . Traps Extracted . | . . . . . Installed . | . . . . . Triggered . | . . . . . Machines | -11 -10 -10 -10 -9 ---------- Run | Yrd Mat Min Exi Min Machines Disabled 2 | . 1 1 . . Max in Single Turn 1 | . 1 1 . . Machines Repaired . | . . . . . Machines Dismantled . | . . . . . Machines Sabotaged . | . . . . . Overloaded Fab Kills . | . . . . . Hacking | -11 -10 -10 -10 -9 --------- Run | Yrd Mat Min Exi Min Machines Accessed 5 | . 4 . 1 . Terminals 4 | . 4 . . . Fabricators . | . . . . . Repair Stations . | . . . . . Recycling Units . | . . . . . Scanalyzers . | . . . . . Garrison Access . | . . . . . Total Hacks 17 | . 16 . 1 . Successful 5 | . 4 . 1 . Failed 11 | . 11 . . . Catastrophic 1 | . 1 . . . Database Lockouts 1 | . 1 . . . Manual 7 | . 6 . 1 . Terminals 16 | . 16 . . . Fabricators . | . . . . . Repair Stations . | . . . . . Recycling Units . | . . . . . Scanalyzers . | . . . . . Garrison Access . | . . . . . Terminal Hacks 5 | . 4 . 1 . Prototype ID Bank 3 | . 3 . . . Branch Access Points 1 | . 1 . . . Derelict Proto ID Bank 1 | . . . 1 . Fabricator Hacks . | . . . . . Repair Station Hacks . | . . . . . Recycling Unit Hacks . | . . . . . Scanalyzer . | . . . . . Garrison Access Hacks . | . . . . . Unauthorized Hacks . | . . . . . Terminals . | . . . . . Fabricators . | . . . . . Repair Stations . | . . . . . Recycling Units . | . . . . . Scanalyzers . | . . . . . Garrison Access . | . . . . . Data Cores Recovered . | . . . . . Used . | . . . . . Hacking Detections 3 | . 3 . . . Full Trace Events . | . . . . . Feedback Events . | . . . . . Feedback Blocked . | . . . . . Robot Schematics Acquired . | . . . . . Robots Built . | . . . . . Authchips . | . . . . . Time . | . . . . . Total Robot Build Rating . | . . . . . Part Schematics Acquired . | . . . . . Parts Built . | . . . . . Authchips . | . . . . . Time . | . . . . . Total Part Build Rating . | . . . . . Parts Repaired . | . . . . . Time . | . . . . . Parts Recycled . | . . . . . Recycled Matter . | . . . . . Retrieved Matter . | . . . . . Retrieved Components . | . . . . . Parts Scanalyzed . | . . . . . Part Schematics Acquired . | . . . . . Parts Damaged . | . . . . . Bothacking | -11 -10 -10 -10 -9 ------------ Run | Yrd Mat Min Exi Min Used RIF Installer . | . . . . . Robots Hacked . | . . . . . Non-combat . | . . . . . Combat . | . . . . . Robot Hacks Applied . | . . . . . Relay Couplers Released . | . . . . . Fabnet Peak Effective % . | . . . . . Robots Rewired . | . . . . . Allies Hacked . | . . . . . Hacks Repelled . | . . . . . Allies | -11 -10 -10 -10 -9 -------- Run | Yrd Mat Min Exi Min Total Allies 1 | . . 1 . . Largest Group 1 | . . 1 1 . Highest-Rated Group 31 | . . 31 31 . Highest-Rated Ally 31 | . . 31 31 . Total Orders . | . . . . . Ally Attacks 14 | . . 9 5 . Total Damage 214 | . . 106 108 . Kills 1 | . . . 1 . Allies Corrupted . | . . . . . Allies Melted . | . . . . . Intel | -11 -10 -10 -10 -9 ------- Run | Yrd Mat Min Exi Min Robot Analysis Total . | . . . . . Derelict Logs Recovered 1 | . . 1 . . Drone Launches . | . . . . . Drone Recoveries . | . . . . . Exploration | -11 -10 -10 -10 -9 ------------- Run | Yrd Mat Min Exi Min Turns Passed 2220 | . 505 883 485 347 Spaces Moved 1579 | 1 301 688 309 280 Core . | . . . . . Treads 43 | . . . 43 . Legs 1536 | 1 301 688 266 280 Wheels . | . . . . . Hover . | . . . . . Flight . | . . . . . Fastest Speed 120 | 120 120 120 120 120 Average Speed 123 | 120 120 120 136 120 Slowest Speed 240 | 120 120 120 240 120 Overloaded Moves . | . . . . . Propulsion Burnouts . | . . . . . Robots Hopped . | . . . . . Cave-ins Triggered . | . . . . . Exploration Rate (%) 52 | 2 59 99 62 42 Regions Visited 4 Branch Regions 3 Pre-discovered Areas 1 | . . 1 . . Known Exits Taken 1 | . 1 . . . Unknown Exits Taken 3 | 1 . 1 1 . Scrap Searched 4 | . . 1 . 3 Spaces Dug . | . . . . . Terrain Destroyed 96 | . 24 53 19 . Melee . | . . . . . Projectile . | . . . . . AOE 96 | . 24 53 19 . Terrain Rammed . | . . . . . Walls Destroyed . | . . . . . Machines Disabled . | . . . . . Actions | -11 -10 -10 -10 -9 --------- Run | Yrd Mat Min Exi Min Total 1726 | . 369 722 344 291 Wait 22 | . 9 3 6 4 Move 1575 | . 300 687 308 280 Hop . | . . . . . Pick Up 11 | . 4 4 3 . Fast Attach 5 | . 3 . . 2 Attach 9 | . 2 1 5 1 Detach 5 | . . . 3 2 Swap 11 | . 4 5 2 . Drop 15 | . 3 6 6 . Fire 69 | . 43 14 11 1 Melee . | . . . . . Ram . | . . . . . Kick 4 | . 1 2 . 1 Crush . | . . . . . Escape Stasis . | . . . . . Rewire . | . . . . . Trap . | . . . . . Miscellaneous . | . . . . . Route ------- -11/Scrapyard -10/Materials (discovered 3 exits: [*Mat] / *Min x2) -10/Mines (discovered 4 exits: [*Mat x2] / *Exi / [*Sub]) -10/Exiles -9/Mines (discovered 1 exit: [*Mat]) History --------- Turn | Location | Event 1 | -11/Scrapyard | Discovered new exit (range 0) 1 | -11/Scrapyard | Entered Materials 298 | -10/Materials | Discovered new exit (range 5) 300 | -10/Materials | Identified exit to Mines 301 | -10/Materials | Build established: Mutant 442 | -10/Materials | Lost 3 parts (1p2w) 484 | -10/Materials | Central database locked down 506 | -10/Materials | Entered Mines 613 | -10/Mines | Met a Derelict testing a Signal Generator 683 | -10/Mines | Found a damaged Exp. Sensor Array with a note attached 686 | -10/Mines | Found Prototype Device 752 | -10/Mines | Build established: Scavenger-Mutant 822 | -10/Mines | Discovered new exit (range 6) 884 | -10/Mines | Discovered new exit (range 7) 1007 | -10/Mines | Discovered new exit (range 8) 1286 | -10/Mines | Learned location of Mines (-9) 1306 | -10/Mines | Deemed a non-threat by the Exiles lab entrance 1306 | -10/Mines | Discovered new exit (range 5) 1389 | -10/Mines | Entered Exiles 1389 | -10/Exiles | Accompanied by 1 ally 1417 | -10/Exiles | Met 8R-AWN 1440 | -10/Exiles | Met EX-HEX 1475 | -10/Exiles | Met EX-BIN 1495 | -10/Exiles | Aligned with FarCom system 1496 | -10/Exiles | Given EX-Vault access code 1529 | -10/Exiles | Opened EX-Vault 1535 | -10/Exiles | Found Trap Reconfigurator 1559 | -10/Exiles | Warned to stay clear of 0b10 Research branches 1579 | -10/Exiles | Exiles lab attacked by MAIN.C 1642 | -10/Exiles | Found YOLO Cannon 1645 | -10/Exiles | Found Latent Energy Streamer 1693 | -10/Exiles | Core integrity fell below 50% 1750 | -10/Exiles | Core integrity fell below 20% 1778 | -10/Exiles | Destroyed 20 combat bots 1787 | -10/Exiles | Lost 3 parts (2p1n) 1864 | -10/Exiles | Discovered new exit (range 10) 1874 | -10/Exiles | Stole three prototypes: Trap Reconfigurator, Latent Energy Streamer, YOLO Cannon 1874 | -10/Exiles | Entered Mines 1984 | -9/Mines | Build established: Mutant 2092 | -9/Mines | Assembled infested the area 2097 | -9/Mines | Assisted by a Guerilla fighting off Assembled 2213 | -9/Mines | Discovered new exit (range 16) 2221 | -9/Mines | Destroyed self with Latent Energy Streamer Last Messages --------------- 01968_ Acquired 25 matter. 01975_ Searching scrap... 01975_ Found Lrg. Battery. 01975_ Found 68 Matter. 01987_ Acquired Lrg. Battery. 02086_ K-01 Serf collects debris. 02092_ ALERT: Infestation in the mines, dispatching Demolisher response squad. 02097_ A derelict emerges from the shadows: "You need to get out of here! I've been tracking a group of Assembled to figure out where they're coming from, and they're closing on this area, come on!" 02097_ HH-9F4(h): "I'll hold them off! Go on ahead or try to find another way!" 02097_ HV Slug penetrates T-07 Excavator. 02097_ T-07 Excavator suffers critical hit (Destroy). 02097_ T-07 Excavator destroyed. 02098_ K-01 Serf collects debris. 02110_ K-01 Serf destroyed. 02212_ Kicked R-06 Scavenger. 02213_ EXIT=FOUND Map ----- +----------------------------------------------------+ | ?????????????????????????????????? | | ?????????????????????????????????? | | ?????????????????????????????????? | | ?????????????????????????????????? | | ?????????????????????????????????? | | ?????????????????????????????????? | | ?????????????????????????????????? | | ?????????????????????????????????? | | ?????????????????????????????????? | | ?????????????????????????????????? | | ????????????????????????? ss?????? | | ?????? ????????????????? ?????? | | ?????? ????????????????? ?????? | | ?????? ?????????????????s< ?????? | | ?????? ????????????????? #?????? | | ?????? ????????????????? #?????? | | ?????? ????????????????# #?????? | | ?????? ########???????? #?????? | | ??????% ###??????# #?????? | | ?????? % ???????# ??????? | | ?????? ???????# ??????? | | ?????? ???????? ??????? | | ?????? ?????????? ??????? | | ?????? ????????????# #??????? | | ?????#= #?????????????# #??????? | | ????##% #??????????????#@#??????? | | ?#### #??????????????# #??????? | | ## ##??????????????# #??????? | | # ##???????????????# #??????? | | ##??????????####### #??????? | | #???????????# #??????? | | ##??????????# ## ####??????? | | #??????????# ## #?????????? | | #??????????# ## #?????????? | | ##??????????# ##????????? | | # #???????????# ##???????? | | # #???????????# / ######??? | | ## ##???????????# % % #??? | | ?# ######????????# #??? | | ?# #????????# ######## #??? | | ?# ######???# #????### #??? | | ?###### #???# #???## ##?? | | ??????# #### ##### #??## #?? | | ####### ##?# ## #??# #?? | | #?#### ## #??# ##?? | | """ """ #???## ## ##?## ##??? | | """ """ #??## ## #??# #???? | | """ """ #??# #??# #???? | | #??# """ #?## #???? | | """ """ #??## """ ### #???? | +----------------------------------------------------+ Best States ------------- Heat Dissipation 39 Energy Generation 14 Energy Capacity 300 Matter Stores 300 Matter Capacity 300 Sight Range 16 Terrain Scan Density 10 Armor Coverage 150 Evasion (%) 55 Recoil Reduction 2 Item Schematics ----------------- None Robot Schematics ------------------ None Fabricated ------------ Nothing Alien Tech Used ----------------- None Achievements -------------- Killing Spree Challenges ------------ None Game ------ Seed BehemothCoordinationClaws Manual? 0 Play Time 00:18:02 Cumulative 244.8 hours Start 2025.04.24 @ 17:47:18 End 2025.04.24 @ 18:02:43 Sessions 1 Manual Loads 0 Difficulty Rogue Special Mode None Game No. 176 Rogue 176 Adventurer 0 Explorer 0 Win Type - Total 19 Types 16/0/1/2/0/0/0/0/0 Lore% 83 Gallery% 75 Achievement% 61 Wizard Run 0 Options --------- Layout 0 ASCII 1 Keyboard 1 Movement Arrows Keybinds 0 Fullscreen 1 Font 18/Terminus Map View 76x50 Zoom Use 0% Tactical HUD 1 Map Filters NONE Filters NONE Steam 1 RUN: c7bb83c4-0d40-4886-b55b-39640bd9f620